bitfinex-derivatives/quotes_ETHF0:USTF0_20251012
["timestamp","ask_amount","ask_price","bid_price","bid_amount"]
[1760230388032,0.00262276,3710.0,3709.2,0.48479]
[1760230388236,0.00262276,3710.0,3709.0,0.1411]
[1760230388237,0.68383045,3709.9,3709.3,0.3628]
[1760230388434,0.68383045,3709.9,3708.3,0.00082187]
[1760230388435,0.84526,3708.7,3708.3,0.00082187]
[1760230388729,0.3604,3708.4,3708.3,0.00082187]
[1760230389036,0.95651524,3709.6,3708.5,0.1411]
[1760230389238,0.68464856,3709.5,3708.6,0.3628]
[1760230389537,0.3604,3709.3,3708.6,0.3628]
[1760230389733,0.48485,3708.8,3708.3,0.00082187]
[1760230389936,0.48485,3708.8,3708.3,0.48572187]
[1760230390533,0.48485,3708.8,3708.4,0.3628]
[1760230390735,2.16835524,3709.7,3708.3,0.48572187]
[1760230390736,0.3604,3709.4,3708.5,0.5039]
[1760230391033,0.67985721,3709.3,3708.9,0.3628]
[1760230391233,0.48471,3709.8,3709.1,0.84759]
[1760230391428,0.68019744,3709.7,3709.5,0.3628]
[1760230391636,0.48731276,3710.0,3709.5,0.62585]
[1760230391837,0.68028848,3709.9,3709.6,0.3628]
[1760230392136,0.00262276,3710.0,3709.9,0.3628]
[1760230393231,0.00262276,3710.0,3709.9,5.3628]
[1760230394335,0.3604,3711.6,3710.1,0.3628]
[1760230394546,0.67978536,3711.5,3710.9,0.84736]
[1760230394730,0.48451,3711.4,3710.7,0.48459]
[1760230395042,0.84495,3711.1,3710.6,0.4846]
[1760230395339,1.21106,3712.1,3710.0,0.1411]
[1760230395340,0.48457,3710.9,3710.7,0.00242839]
[1760230395527,0.3604,3710.8,3710.7,0.00242839]
[1760230396939,0.48469,3710.0,3709.8,0.3628]
[1760230397135,0.48469,3710.0,3709.9,0.3628]
[1760230397840,0.3604,3710.8,3709.9,0.3628]
[1760230398144,0.48468,3710.1,3709.9,0.00101624]
[1760230398332,0.3604,3710.0,3709.9,0.00101624]
[1760230398837,5.3604,3710.0,3709.0,0.1411]
[1760230399041,5.3604,3710.0,3708.8,0.3628]
[1760230399042,1.21179,3709.8,3708.6,0.3628]
[1760230399230,0.48481,3709.1,3708.6,0.48486]
[1760230399433,0.48476,3709.5,3708.8,0.84763]
[1760230399637,0.48476,3709.5,3708.9,0.3628]
[1760230399839,0.48477,3709.4,3709.0,0.1411]
[1760230400142,0.48476,3709.5,3709.1,0.3628]
[1760230400538,0.3604,3710.1,3708.5,0.1411]
[1760230400737,1.21161,3710.4,3708.5,0.1411]
[1760230400738,0.3604,3709.4,3708.6,0.48486]
[1760230400942,0.3604,3708.8,3708.5,0.3628]
[1760230401237,0.00350398,3708.8,3708.5,0.3628]
[1760230402043,0.48485,3708.7,3708.2,0.3628]
[1760230402244,0.48835398,3708.8,3708.1,0.3628]
[1760230402741,0.48486,3708.7,3708.5,0.3628]
[1760230404040,0.00350398,3708.8,3708.6,0.48486]
[1760230404245,0.00350398,3708.8,3708.7,0.3628]
[1760230404744,0.48473,3709.7,3709.3,0.3628]
[1760230404945,1.43477286,3711.2,3709.0,0.1411]
[1760230404946,0.0314,3711.0,3709.5,0.1411]
[1760230405146,0.48465,3710.3,3709.9,0.3628]
[1760230405445,0.48468,3710.1,3709.9,0.3628]
[1760230405650,0.48464,3710.4,3709.9,0.48469]
[1760230405848,0.48786053,3710.4,3709.9,0.48469]
[1760230406043,0.48466,3710.2,3709.9,0.48469]
[1760230406353,0.48466,3710.2,3710.0,0.3628]
[1760230406542,0.48466,3710.2,3709.9,0.48469]
[1760230406543,0.36362053,3710.4,3709.5,0.5039]
[1760230406739,0.36362053,3710.4,3709.6,0.3628]
[1760230406740,0.48471,3709.9,3709.6,0.3628]
[1760230406947,0.48466,3710.2,3709.7,0.48471]
[1760230407143,0.48465,3710.3,3709.9,0.48469]
[1760230407341,0.00322053,3710.4,3710.3,0.3628]
[1760230407543,0.36362053,3710.4,3709.6,0.3628]
[1760230407744,0.3604,3710.0,3709.2,0.48478]
[1760230407950,0.3604,3710.0,3709.1,0.3628]
[1760230408138,0.4944,3710.0,3709.1,0.3628]
[1760230408341,0.361,3709.2,3708.7,0.34583479]
[1760230408647,0.48482,3709.0,3708.7,0.34583479]
[1760230409047,0.4848,3709.2,3708.8,0.82823]
[1760230409256,0.361,3709.7,3708.7,0.00243479]
[1760230409543,0.84581,3709.1,3708.7,0.34583479]
[1760230409738,0.48484,3708.9,3708.7,0.34583479]
[1760230410549,0.361,3708.8,3708.7,0.00243479]
[1760230410945,5.361,3708.8,3708.7,0.00243479]
[1760230411143,0.48484,3708.9,3708.7,0.00243479]
[1760230411338,0.361,3709.4,3708.7,0.34583479]
[1760230411747,0.48484,3708.9,3708.7,0.34583479]
[1760230411948,0.48484,3708.9,3708.7,0.00243479]
[1760230412549,0.361,3710.0,3709.0,0.62421]
[1760230412748,1.34746,3710.5,3709.1,0.3434]
[1760230412749,0.1359,3710.5,3709.1,0.3434]
[1760230412944,0.48469,3710.0,3709.5,0.1394]
[1760230413145,0.361,3710.6,3709.6,0.3434]
[1760230413345,0.48467,3710.2,3709.8,0.48471]
[1760230413546,0.84568,3710.1,3709.7,0.3434]
[1760230413946,0.48468,3710.1,3709.7,0.3434]
[1760230414144,0.48468,3710.1,3709.6,0.48473]
[1760230414354,0.48478,3709.3,3709.1,0.3434]
[1760230414544,0.48478,3709.3,3709.2,0.3434]
[1760230415349,0.4848,3709.2,3708.7,0.48728479]
[1760230415554,0.4848,3709.2,3708.9,0.361]
[1760230415754,0.361,3709.8,3708.9,0.361]
[1760230415755,0.48478,3709.3,3709.0,0.361]
[1760230415954,0.48478,3709.3,3709.1,0.361]
[1760230416162,0.361,3709.8,3709.0,0.98971]
[1760230416361,1.21162,3710.3,3709.3,0.48477]
[1760230416552,0.48473,3709.7,3709.3,0.48477]
[1760230416859,0.48473,3709.7,3709.5,0.361]
[1760230417253,0.48476,3709.5,3709.0,0.62871]
[1760230417550,0.4847,3709.9,3709.4,0.361]
[1760230417753,0.48472,3709.8,3709.6,0.361]
[1760230418354,0.48472,3709.8,3709.0,0.1439]
[1760230418355,0.48483,3709.0,3708.7,0.36343479]
[1760230418657,0.48483,3709.0,3708.8,0.361]
[1760230419255,0.48484,3708.8,3708.7,0.00243479]
[1760230419458,0.83174,3708.8,3708.7,0.00243479]
[1760230419656,0.48496,3707.9,3707.8,0.361]
[1760230420765,0.48498,3707.8,3707.5,0.1439]
[1760230420968,0.48828559,3707.8,3707.6,0.361]
[1760230421267,0.48828559,3707.8,3707.5,0.14496919]
[1760230421663,0.00330559,3707.8,3707.7,0.361]
[1760230423157,0.00330559,3707.8,3707.5,0.35856919]
[1760230423158,0.48499,3707.7,3707.5,0.35856919]
[1760230423558,0.48499,3707.7,3707.5,0.00106919]
[1760230423954,0.48499,3707.7,3707.5,0.35856919]
[1760230425065,0.83159,3707.7,3707.5,0.00106919]
[1760230425266,0.48511,3706.8,3706.6,0.3575]
[1760230425565,0.48511,3706.8,3706.4,0.09844369]
[1760230425566,0.48513,3706.7,3706.4,0.45594369]
[1760230425957,0.48513,3706.7,3706.5,0.3575]
[1760230426366,0.48509,3706.9,3706.5,0.3575]
[1760230426561,0.48511,3706.8,3706.5,0.3575]
[1760230427368,0.48511,3706.8,3706.4,0.09844369]
[1760230427771,0.48513,3706.6,3706.5,0.3575]
[1760230428259,0.48511,3706.8,3706.5,0.3575]
[1760230428461,0.48508,3707.0,3706.6,0.48512]
[1760230428660,0.48508,3707.0,3706.8,0.3575]
[1760230429571,1.21248,3707.7,3706.5,0.1446]
[1760230429572,0.8317,3706.9,3706.5,0.3575]
[1760230429765,0.3466,3707.4,3706.8,0.4851]
[1760230429971,0.48506,3707.2,3707.1,0.3575]
[1760230430269,0.48509,3707.0,3706.6,0.3575]
[1760230430468,0.48509,3707.0,3706.5,0.1446]
[1760230431372,0.34990559,3707.8,3706.6,0.3575]
[1760230431560,0.48506,3707.2,3706.8,0.4851]
[1760230431765,0.48506,3707.2,3707.1,0.3575]
[1760230432670,0.48509,3706.9,3706.5,0.1446]
[1760230432980,0.48507,3707.1,3706.8,0.3575]
[1760230433270,0.48505,3707.3,3707.1,0.3575]
[1760230433469,0.00330559,3707.8,3706.7,0.84261]
[1760230433470,0.48507,3707.1,3706.7,0.84261]
[1760230433671,0.48509,3707.0,3706.8,0.3575]
[1760230434171,0.3466,3707.4,3706.6,0.3575]
[1760230434373,0.34990559,3707.8,3706.6,0.3575]
[1760230434672,0.34990559,3707.8,3707.1,0.3575]
[1760230434865,0.48501,3707.6,3707.2,0.3575]
[1760230435065,0.34990559,3707.8,3707.2,0.3575]
[1760230435470,0.83488559,3707.8,3707.5,0.3575]
[1760230435670,0.3466,3708.6,3707.7,0.3575]
[1760230435866,1.21194,3709.4,3708.4,0.3575]
[1760230435867,0.48478,3709.3,3708.4,0.3575]
[1760230436065,0.3466,3709.4,3708.9,0.3575]
[1760230436266,0.3466,3709.9,3709.1,0.84229]
[1760230436462,0.3466,3709.9,3709.1,0.3575]
[1760230436661,0.00316315,3709.9,3709.4,0.3575]
[1760230436868,0.00316315,3709.9,3709.1,0.3575]
[1760230437168,0.00316315,3709.9,3709.5,0.48475]
[1760230437367,0.34976315,3709.9,3709.5,0.48475]
[1760230437667,0.3466,3709.8,3709.5,0.84225]
[1760230437874,0.00316315,3709.9,3709.7,0.3575]
[1760230438178,0.48461,3710.6,3709.8,0.3575]
[1760230438368,0.3466,3710.8,3710.2,0.48465]
[1760230438676,0.48462,3710.6,3710.0,0.48468]
[1760230438969,0.48774335,3710.6,3710.0,0.48663343]
[1760230439172,0.3466,3710.1,3710.0,0.00195343]
[1760230439365,0.00312335,3710.6,3710.0,0.00195343]
[1760230439569,0.83433335,3710.6,3710.0,0.00195343]
[1760230439776,0.83123,3710.5,3710.0,0.35945343]
[1760230440072,0.83123,3710.5,3710.1,0.3575]
[1760230440274,0.00312335,3710.6,3710.2,0.3575]
[1760230440474,0.00312335,3710.6,3710.5,0.3575]
[1760230440865,0.3466,3710.5,3710.0,0.35945343]
[1760230441069,0.48465,3710.3,3710.0,0.00195343]
[1760230441269,0.3466,3710.4,3710.1,0.3575]
[1760230441663,0.3466,3710.2,3710.0,0.00195343]
[1760230441870,0.3466,3710.1,3710.0,0.00195343]
[1760230443477,0.48467,3710.2,3710.0,0.00195343]
[1760230443874,0.83127,3710.2,3710.0,0.00195343]
[1760230444174,0.3466,3710.1,3710.0,0.00195343]
[1760230445373,0.0314,3710.0,3708.7,0.3458]
[1760230445573,0.48464,3710.4,3709.8,0.83051]
[1760230445875,0.48463,3710.5,3709.8,0.8305]
[1760230446074,0.48464,3710.4,3710.0,0.3458]
[1760230446271,0.1344,3711.0,3709.5,0.1378]
[1760230446272,0.48456,3711.0,3710.4,0.48462]
[1760230446477,0.48454,3711.2,3710.5,0.4836]
[1760230446676,0.48451,3711.4,3710.5,0.4836]
[1760230446875,0.48451,3711.4,3710.8,0.48457]
[1760230447281,0.5003,3712.0,3711.2,0.3458]
[1760230447580,0.48446,3711.8,3711.2,0.83032]
[1760230447770,0.0021655,3712.0,3711.5,0.48448]
[1760230447969,0.0021655,3712.0,3711.6,0.3458]
[1760230448170,0.48449,3711.5,3711.0,0.1378]
[1760230448372,0.48454,3711.2,3711.1,0.3458]
[1760230448581,0.0021655,3712.0,3710.6,0.3458]
[1760230448771,0.48444,3711.9,3711.2,0.48452]
[1760230448971,0.48449,3711.6,3711.1,0.3458]
[1760230450078,0.48461,3710.6,3710.5,0.3458]
[1760230450276,0.48461,3710.6,3710.0,0.1378]
[1760230450277,0.85051,3710.6,3710.0,0.1378]
[1760230450475,0.48474,3709.6,3709.5,0.3458]
[1760230450875,0.48478,3709.3,3709.0,0.1378]
[1760230451077,0.48477,3709.4,3709.1,0.3458]
[1760230451277,0.48479,3709.3,3709.1,0.3458]
[1760230451474,0.48701362,3709.3,3709.2,0.3458]
[1760230451679,0.00222362,3709.3,3709.2,0.3458]
[1760230452175,0.3659,3710.9,3709.3,0.48477]
[1760230452385,0.3659,3710.9,3709.5,0.1378]
[1760230452780,0.3659,3711.4,3709.7,1.21181]
[1760230453084,0.3659,3711.8,3710.8,0.48457]
[1760230453280,0.36850342,3711.8,3710.9,0.3458]
[1760230453880,0.48452,3711.3,3710.9,0.3458]
[1760230454378,0.48452,3711.3,3711.0,0.3458]
[1760230454571,0.36850342,3711.8,3711.1,0.3458]
[1760230454776,0.48448,3711.6,3710.6,0.3458]
[1760230454977,0.00260342,3711.8,3711.4,0.83029]
[1760230455173,0.48706342,3711.8,3711.5,0.3458]
[1760230455375,0.48706342,3711.8,3711.2,0.48452]
[1760230455783,0.48447,3711.7,3711.2,0.48452]
[1760230455973,0.48447,3711.7,3711.4,0.3458]
[1760230456179,0.48447,3711.7,3711.2,0.48452]
[1760230456487,0.48447,3711.7,3711.3,0.3458]
[1760230456679,0.48447,3711.7,3711.5,0.3458]
[1760230456881,0.48455,3711.1,3710.6,0.4846]
[1760230457084,0.3659,3711.6,3710.8,0.83037]
[1760230457381,0.3659,3711.6,3711.0,0.3458]
[1760230457382,0.48454,3711.2,3711.0,0.3458]
[1760230457578,0.3659,3711.6,3710.6,0.3458]
[1760230457785,0.00260342,3711.8,3711.1,0.3458]
[1760230458689,0.00260342,3711.8,3711.4,0.3458]
[1760230458690,0.48705342,3711.8,3711.4,0.3458]
[1760230458880,0.48705342,3711.8,3711.3,0.48451]
[1760230459184,0.3659,3711.6,3709.5,0.1378]
[1760230459384,0.4846,3710.7,3710.5,0.1378]
[1760230459589,0.48461,3710.6,3710.5,0.3458]
[1760230460082,0.48459,3710.8,3710.4,0.48463]
[1760230460285,0.6194,3711.5,3710.2,0.48466]
[1760230460486,0.3659,3711.4,3710.4,0.48463]
[1760230460683,0.48457,3710.9,3710.5,0.96821]
[1760230460886,0.4846,3710.7,3710.5,0.3458]
[1760230461084,0.4846,3710.7,3710.4,0.48463]
[1760230461388,0.00260342,3711.8,3710.8,0.3458]
[1760230461589,0.3659,3712.6,3711.6,0.3458]
[1760230461887,3.00711153,3713.5,3712.1,0.3458]
[1760230461888,0.3659,3713.2,3712.1,0.3458]
[1760230462088,0.48427,3713.2,3712.6,0.48434]
[1760230462284,0.48427,3713.2,3712.0,0.1378]
[1760230462285,0.48429,3713.1,3712.0,0.1378]
[1760230462486,0.50906536,3712.8,3712.2,0.48439]
[1760230462791,0.02473536,3712.8,3712.5,0.3458]
[1760230463084,0.02473536,3712.8,3712.6,0.3458]
[1760230463291,0.02473536,3712.8,3712.7,0.83013]
[1760230463782,0.3659,3714.4,3712.6,0.3458]
[1760230463983,0.3659,3714.4,3713.3,0.3458]
[1760230464390,0.48415,3714.2,3713.5,0.62202]
[1760230464582,0.48415,3714.2,3713.6,0.83]
[1760230464782,0.48416,3714.1,3713.6,0.3458]
[1760230464988,0.48418,3714.0,3713.6,0.3458]
[1760230465390,0.48418,3714.0,3713.5,0.1378]
[1760230465689,0.4842,3713.7,3713.0,0.62209]
[1760230465892,0.48418,3713.9,3713.1,0.3458]
[1760230466094,0.00334502,3714.2,3713.3,0.3458]
[1760230466393,0.00334502,3714.2,3713.2,0.48426]
[1760230466394,0.48421,3713.7,3713.4,0.3458]
[1760230466689,0.00334502,3714.2,3713.1,0.3458]
[1760230466892,0.00334502,3714.2,3713.3,0.3458]
[1760230467295,0.00334502,3714.2,3713.5,0.1378]
[1760230467693,0.00334502,3714.2,3713.0,0.1378]
[1760230467694,0.48428,3713.1,3713.0,0.1378]
[1760230467892,0.00334502,3714.2,3713.1,0.3458]
[1760230468805,0.00334502,3714.2,3713.6,0.4842]
[1760230469096,0.48416,3714.1,3713.9,0.3458]
[1760230469302,0.48417,3714.0,3713.6,0.3458]
[1760230469504,0.48418,3713.9,3713.6,0.3458]
[1760230469803,0.48418,3713.9,3713.3,0.3458]
[1760230470105,0.48428,3713.2,3712.5,0.1378]
[1760230470400,1.21038,3714.1,3712.6,0.3458]
[1760230470401,0.3659,3714.1,3712.6,0.3458]
[1760230470598,0.48421,3713.7,3713.5,0.1378]
[1760230470903,0.36924502,3714.2,3713.1,0.3458]
[1760230471503,0.48424,3713.4,3712.9,0.48431]
[1760230471796,0.3659,3713.8,3713.1,0.3458]
[1760230472194,0.48422,3713.6,3713.0,0.62208]
[1760230472398,0.48422,3713.6,3713.1,0.3458]
[1760230472594,0.48422,3713.6,3713.0,0.62209]
[1760230472799,0.48422,3713.6,3713.2,0.48427]
[1760230473002,0.00334502,3714.2,3713.3,0.3458]
[1760230473304,0.4842,3713.8,3713.2,0.48427]
[1760230473495,0.4842,3713.8,3713.3,0.3458]
[1760230473695,0.4842,3713.8,3713.4,0.3458]
[1760230473902,0.4842,3713.8,3713.3,0.48425]
[1760230474095,0.48421,3713.7,3713.4,0.3458]
[1760230474297,0.48421,3713.7,3713.3,0.48425]
[1760230474503,0.48421,3713.7,3713.6,0.3458]
[1760230475802,0.48421,3713.7,3713.1,0.48428]
[1760230475803,0.4842,3713.8,3713.5,0.1387]
[1760230476200,0.00334502,3714.2,3713.6,0.3587]
[1760230477004,0.48417,3714.0,3713.6,0.3587]
[1760230477305,0.4842,3713.8,3713.6,0.3587]
[1760230477610,0.4842,3713.8,3713.5,0.1387]
[1760230477907,0.4842,3713.8,3713.6,0.3587]
[1760230478109,0.4842,3713.8,3713.5,0.1387]
[1760230478311,0.4842,3713.8,3713.6,0.3587]
[1760230479098,0.48417,3714.0,3713.6,0.84291]
[1760230479313,0.48417,3714.0,3713.7,0.3587]
[1760230479609,0.48748502,3714.2,3713.8,0.48419]
[1760230479801,0.48748502,3714.2,3714.1,0.3587]
[1760230481609,0.48421,3713.7,3713.6,0.3587]
[1760230481810,0.00334502,3714.2,3713.6,0.3587]
[1760230482011,0.48418,3713.9,3713.6,0.3587]
[1760230482312,0.48418,3713.9,3713.5,0.62292]
[1760230482509,0.48417,3714.0,3713.5,0.62292]
[1760230482709,0.48417,3714.0,3713.7,0.3587]
[1760230483110,0.48417,3714.0,3713.5,0.1387]
[1760230483111,0.00334502,3714.2,3714.1,0.3587]
[1760230483404,0.00334502,3714.2,3714.1,5.84285]
[1760230483606,0.48404,3715.0,3714.6,0.48408]
[1760230483913,0.48404,3715.0,3714.7,0.3587]
[1760230484107,0.3375,3715.8,3714.8,0.3587]
[1760230484108,0.48401,3715.2,3714.8,0.3587]
[1760230484299,1.54721,3716.2,3715.1,0.3587]
[1760230484501,1.16455405,3716.1,3716.0,0.4974]
[1760230484702,1.02128761,3716.1,3716.0,0.00247147]
[1760230485411,0.68378761,3716.1,3716.0,0.34667147]
[1760230485707,0.68378761,3716.1,3716.0,0.48107147]
[1760230485708,0.0031064,3716.1,3716.0,0.48107147]
[1760230487611,5.3614064,3716.1,3716.0,0.00247147]
[1760230487809,6.04149363,3716.1,3716.0,0.00247147]
[1760230489407,0.3583,3715.9,3715.0,0.4829]
[1760230489611,0.48403,3715.1,3714.5,0.62279]
[1760230490210,0.48403,3715.1,3714.6,0.3442]
[1760230490411,0.48403,3715.1,3714.6,0.48622773]
[1760230490707,0.48407,3714.7,3714.6,0.00214773]
[1760230490905,0.84237,3714.7,3714.6,0.00214773]
[1760230491104,6.5228817,3714.7,3714.6,0.00214773]
[1760230491716,1.5228817,3714.7,3714.6,0.00214773]
[1760230492412,6.5228817,3714.7,3714.6,0.00214773]
[1760230492911,0.4842,3713.7,3713.6,0.3442]
[1760230493308,0.48415,3714.1,3713.2,0.48426]
[1760230493515,0.48417,3714.0,3713.4,0.3442]
[1760230493813,0.48421,3713.6,3713.1,0.48427]
[1760230494014,0.48419,3713.9,3713.3,0.00238984]
[1760230494209,0.4842,3713.8,3713.4,0.3442]
[1760230494409,0.4842,3713.8,3713.6,0.3442]
[1760230494606,0.48421,3713.7,3713.6,0.3442]
[1760230494808,0.48421,3713.7,3713.3,0.00238984]
[1760230495014,0.48423,3713.5,3713.3,0.00238984]
[1760230495315,0.4872432,3713.5,3713.3,0.00238984]
[1760230495521,0.3583,3713.4,3713.3,0.00238984]
[1760230495814,1.04013994,3713.4,3713.3,0.00238984]
[1760230496608,6.04013994,3713.4,3713.3,0.00238984]
[1760230497714,1.04013994,3713.4,3713.3,0.00238984]
[1760230498122,6.04013994,3713.4,3713.3,0.00238984]
[1760230498414,1.04013994,3713.4,3713.3,0.00238984]
[1760230499216,0.48437,3712.4,3712.3,0.3442]
[1760230499607,0.48441,3712.1,3712.0,0.1344]
[1760230499809,0.48441,3712.1,3712.0,0.4786]
[1760230500217,0.48441,3712.1,3712.0,5.48155686]
[1760230500414,0.3583,3713.2,3712.1,0.3442]
[1760230500607,0.68099158,3713.1,3712.1,0.3442]
[1760230500814,0.48438,3712.4,3712.1,0.3442]
[1760230501824,0.48441,3712.2,3712.1,0.3442]
[1760230502321,0.84271,3712.2,3712.0,0.00295686]
[1760230502622,0.3583,3712.1,3712.0,0.00295686]
[1760230503814,0.3583,3712.1,3711.3,0.3442]
[1760230503815,1.21107,3712.0,3711.3,0.3442]
[1760230504119,0.48461,3710.6,3710.5,0.4786]
[1760230504818,0.48680069,3710.6,3710.5,0.4811431]
[1760230505220,0.48680069,3710.6,3710.5,5.4811431]
[1760230505525,0.00219069,3710.6,3710.5,5.4811431]
[1760230506116,0.00219069,3710.6,3710.5,0.4811431]
[1760230506515,0.48680069,3710.6,3710.5,0.4811431]
[1760230506822,0.48680069,3710.6,3710.5,0.3467431]
[1760230507619,0.48680069,3710.6,3710.5,0.0025431]
[1760230508015,0.48680069,3710.6,3710.5,0.3390431]
[1760230508223,0.48680069,3710.6,3710.5,0.0025431]
[1760230509018,0.48680069,3710.6,3710.5,0.3390431]
[1760230509219,0.1337,3711.5,3710.5,0.3390431]
[1760230509220,0.3367,3712.0,3711.0,0.1453]
[1760230509528,0.48452,3711.3,3711.1,0.3365]
[1760230509828,0.48452,3711.3,3711.0,0.1453]
[1760230510024,1.21104,3712.1,3711.0,0.1453]
[1760230510025,0.48454,3711.2,3711.0,0.1453]
[1760230510223,0.00267971,3711.2,3711.1,0.3365]
[1760230511028,0.00267971,3711.2,3710.6,0.3365]
[1760230511323,0.00267971,3711.2,3710.5,0.4843431]
[1760230511623,0.48721971,3711.2,3711.1,0.3365]
[1760230512122,0.00267971,3711.2,3711.1,0.3365]
[1760230512825,1.2109,3712.6,3712.2,0.3365]
[1760230512826,0.48435,3712.6,3712.2,0.3365]
[1760230513019,0.48436,3712.5,3712.1,0.3365]
[1760230513221,0.3367,3713.0,3712.2,0.3365]
[1760230513417,0.48438,3712.3,3712.2,0.3365]
[1760230513731,0.48663304,3712.3,3712.2,0.3365]
[1760230513930,0.00225304,3712.3,3711.6,0.3365]
[1760230514123,0.48443,3712.0,3711.5,0.62978]
[1760230514328,0.00225304,3712.3,3712.0,0.1453]
[1760230514526,0.00225304,3712.3,3712.2,0.3365]
[1760230515016,0.3367,3713.8,3712.9,0.4843]
[1760230515217,0.48425,3713.4,3713.1,0.3365]
[1760230515517,0.48426,3713.3,3713.1,0.3365]
[1760230515722,0.3367,3714.0,3713.1,0.3365]
[1760230515917,0.33907221,3714.0,3713.2,0.48426]
[1760230516116,0.48418,3713.9,3713.3,0.3365]
[1760230516318,0.48424,3713.5,3713.1,0.00191056]
[1760230517126,0.48424,3713.5,3713.2,0.3365]
[1760230517326,0.48425,3713.4,3713.2,0.3365]
[1760230517628,0.33907221,3714.0,3713.1,0.00191056]
[1760230517629,0.48418,3713.9,3713.5,0.1453]
[1760230517830,0.48418,3713.9,3713.6,0.3365]
[1760230518028,0.00237221,3714.0,3713.6,0.82071]
[1760230518224,0.00237221,3714.0,3713.7,0.3365]
[1760230518522,0.00237221,3714.0,3713.9,0.3365]
[1760230519729,0.00237221,3714.0,3713.1,0.00191056]
[1760230519730,0.48425,3713.4,3713.2,0.3365]
[1760230520028,0.48426,3713.3,3713.2,0.3365]
[1760230520819,0.82096,3713.3,3713.1,0.00191056]
[1760230521234,0.82096,3713.3,3713.1,0.33841056]
[1760230521431,0.48426,3713.3,3713.1,0.33841056]
[1760230521627,0.48426,3713.3,3713.2,0.3365]
[1760230525136,0.82096,3713.3,3713.1,0.00191056]
[1760230525341,0.3367,3713.2,3713.1,0.00191056]
[1760230525531,0.48437,3712.4,3712.3,0.3365]
[1760230525930,0.48441,3712.2,3712.1,0.3365]
[1760230526534,0.48441,3712.2,3712.1,0.0021138]
[1760230527533,0.48441,3712.2,3712.1,0.3386138]
[1760230529837,0.82111,3712.2,3712.1,0.0021138]
[1760230531133,0.82111,3712.2,3711.1,2.30300627]
[1760230531134,5.0,3712.2,3711.0,0.3365]
[1760230531338,0.48454,3711.1,3711.0,0.3365]
[1760230531943,0.48458,3710.9,3710.6,0.3365]
[1760230532142,0.48459,3710.8,3710.7,0.3365]
[1760230532541,0.00264737,3710.9,3710.7,0.3365]
[1760230532942,0.48721737,3710.9,3710.7,0.3365]
[1760230533244,0.48459,3710.8,3710.6,0.00190453]
[1760230533442,0.48459,3710.8,3710.7,0.3365]
[1760230535239,0.3415,3710.7,3710.6,0.00190453]
[1760230536652,0.48459,3710.8,3710.7,0.3684]
[1760230537156,0.3415,3710.7,3710.6,0.00190453]
[1760230539456,0.4761,3710.5,3709.6,0.3684]
[1760230539752,0.48473,3709.7,3709.6,0.3684]
[1760230539951,0.48462,3710.5,3710.0,0.1359]
[1760230540147,0.48465,3710.3,3710.1,0.3684]
[1760230540353,0.48465,3710.3,3710.1,0.37112815]
[1760230540551,0.48465,3710.3,3710.2,0.3684]
[1760230542060,0.3616,3710.2,3710.1,0.00272815]
[1760230542253,0.48465,3710.3,3710.1,0.34302815]
[1760230542451,0.48465,3710.3,3710.2,0.3403]
[1760230544455,0.84625,3710.3,3710.1,0.00272815]
[1760230544862,0.84625,3710.3,3710.1,0.34302815]
[1760230545758,0.48465,3710.3,3710.2,0.3403]
[1760230546350,0.48465,3710.3,3710.1,0.00272815]
[1760230546351,0.3616,3710.2,3710.1,0.00272815]
[1760230547454,0.3616,3710.2,3710.1,0.34302815]
[1760230547660,0.48465,3710.3,3710.2,0.3403]
[1760230548463,0.48465,3710.3,3710.1,0.00272815]
[1760230548464,0.3616,3710.2,3710.1,0.00272815]
[1760230548852,0.3616,3710.2,3709.3,0.3403]
[1760230549057,0.48476,3709.4,3709.3,0.3403]
[1760230549552,0.48487,3708.6,3708.5,0.4762]
[1760230549958,0.48487,3708.6,3708.5,0.47796462]
[1760230550256,0.84647,3708.6,3708.5,0.00176462]
[1760230552257,0.84656,3707.9,3707.7,0.3403]
[1760230552562,0.84656,3707.9,3707.3,0.3403]
[1760230553157,0.84933515,3707.9,3707.3,0.3403]
[1760230553367,0.48506,3707.1,3707.0,0.3403]
[1760230553769,0.48506,3707.1,3707.0,0.4836]
[1760230554966,0.48512,3706.8,3706.5,0.1433]
[1760230555168,0.48512,3706.7,3706.6,0.3403]
[1760230556364,0.84674,3706.5,3705.9,0.3403]
[1760230556564,0.84674,3706.5,3706.4,0.10027909]
[1760230556768,0.98034,3706.5,3706.4,0.10027909]
[1760230557074,0.84674,3706.5,3706.4,0.10027909]
[1760230558875,0.98034,3706.5,3706.4,0.10027909]
[1760230559074,5.4952,3706.5,3705.5,0.1433]
[1760230559276,0.48523,3705.9,3705.4,0.3403]
[1760230559575,0.48524,3705.8,3705.5,0.1433]
[1760230560169,0.48521,3706.0,3705.6,0.3403]
[1760230560475,0.48524,3705.8,3705.7,0.3403]
[1760230560765,0.1336,3706.5,3705.5,0.1433]
[1760230560766,0.8468,3706.1,3705.6,0.82555]
[1760230560972,0.48522,3706.0,3705.5,0.1433]
[1760230561170,0.48523,3705.9,3705.6,0.3403]
[1760230561473,0.48523,3705.9,3705.5,0.62857]
[1760230561673,0.48523,3705.9,3705.6,0.3403]
[1760230561861,0.48525,3705.7,3705.6,0.3403]
[1760230562979,0.48523,3705.9,3705.7,0.3403]
[1760230563473,0.48532,3705.2,3705.1,0.3403]
[1760230563673,0.0032021,3705.2,3705.1,0.3403]
[1760230564067,0.48536,3704.9,3704.4,0.48541]
[1760230564270,0.48536,3704.9,3704.5,0.6287]
[1760230564462,0.48536,3704.9,3704.6,0.3403]
[1760230564775,0.3648021,3705.2,3704.6,0.3401]
[1760230564971,0.0032021,3705.2,3705.1,0.3401]
[1760230565179,0.0032021,3705.2,3704.5,0.6287]